[Event "Charlotte Open 2024"]
[Site "Charlotte"]
[Date "2024.01.15"]
[Round "5.13"]
[White "Fang, Thomas"]
[Black "Aaron, Deepak"]
[Result "0-1"]
[ECO "B30"]
[WhiteElo "1856"]
[BlackElo "2296"]
[Annotator "NA"]
[PlyCount "104"]
[EventDate "2024.01.05"]
[EventType "swiss"]
[EventCountry "USA"]
[SourceTitle "playchess.com"]
[Source "ChessBase"]
[SourceQuality "1"]
[TimeControl "6600+10"]

1. e4 {[%emt 0:00:04]} c5 {[%emt 0:00:01]} 2. Nf3 {[%emt 0:00:10]} Nc6 {[%emt 0:00:01]} 3. Bb5 {[%emt 0:00:15]} e6 {[%emt 0:00:07]} 4. Bxc6 {[%emt 0:01:25]} bxc6 {[%emt 0:00:05]} 5. Nc3 {[%emt 0:03:57]} Qc7 {[%emt 0:02:56]} 6. e5 {[%emt 0:02:37]} Ne7 {[%emt 0:01:12]} 7. d3 {[%emt 0:02:30]} Ng6 {[%emt 0:00:23]} 8. Qe2 {[%emt 0:00:17]} f6 {[%emt 0:00:36]} 9. exf6 {[%emt 0:21:35]} gxf6 {[%emt 0:00:16]} 10. h4 {[%emt 0:00:10]} d5 {[%emt 0:01:49]} 11. h5 {[%emt 0:04:06]} Ne7 {[%emt 0:04:21]} 12. b3 {[%emt 0:00:20]} e5 {[%emt 0:01:41]} 13. Nh4 {[%emt 0:03:27]} Rg8 {[%emt 0:01:26]} 14. f3 {[%emt 0:02:03]} Be6 {[%emt 0:03:46]} 15. Na4 {[%emt 0:02:06]} c4 {[%emt 0:05:45]} 16. Ba3 {[%emt 0:01:11]} Bh6 {[%emt 0:01:23]} 17. Rd1 {[%emt 0:08:50]} Qa5+ {[%emt 0:03:34]} 18. Kf1 {[%emt 0:00:20]} cxb3 {[%emt 0:12:13]} 19. cxb3 {[%emt 0:01:05]} Bc8 {[%emt 0:01:55]} 20. Qc2 {[%emt 0:01:20]} Qc7 {[%emt 0:05:42]} 21. Bc5 {[%emt 0:03:10]} Bg5 {[%emt 0:05:01]} 22. b4 {[%emt 0:03:33]} Rb8 {[%emt 0:05:08]} 23. a3 {[%emt 0:01:34]} Bxh4 {[%emt 0:06:09]} 24. Bxe7 {[%emt 0:00:44]} Bg5 {[%emt 0:01:43]} 25. Bc5 {[%emt 0:00:17]} Bf4 {[%emt 0:05:57]} 26. Bf2 {[%emt 0:03:28]} d4 {[%emt 0:06:46]} 27. Re1 {[%emt 0:03:35]} Kf7 {[%emt 0:05:19]} 28. Nc5 {[%emt 0:00:21]} Qd6 {[%emt 0:09:16]} 29. Bh4 {[%emt 0:00:57]} f5 {[%emt 0:02:20]} 30. Qc4+ {[%emt 0:07:31]} Qd5 {[%emt 0:02:09]} 31. Qxd5+ {[%emt 0:07:40]} cxd5 {[%emt 0:00:01]} 32. Bf2 {[%emt 0:00:08]} a5 {[%emt 0:03:14]} 33. Rb1 {[%emt 0:02:24]} axb4 {[%emt 0:01:20]} 34. axb4 {[%emt 0:00:03]} Ke7 {[%emt 0:00:27]} 35. Be1 {[%emt 0:01:41]} Bd7 {[%emt 0:00:49]} 36. Rg1 {[%emt 0:05:47]} Bb5 {[%emt 0:02:09]} 37. Bf2 {[%emt 0:01:35]} Ra8 {[%emt 0:03:38]} 38. g3 {[%emt 0:03:17]} Be3 {[%emt 0:00:27]} 39. Bxe3 {[%emt 0:00:06]} dxe3 {[%emt 0:00:03]} 40. Kg2 {[%emt 0:00:15]} Ra2+ {[%emt 0:01:54]} 41. Kh3 {[%emt 0:00:03]} Rg5 {[%emt 0:00:31]} 42. g4 {[%emt 0:00:21]} Rf2 {[%emt 0:01:19]} 43. Rgf1 {[%emt 0:00:23]} Rxf3+ {[%emt 0:00:53]} 44. Rxf3 {[%emt 0:00:58]} fxg4+ {[%emt 0:00:03]} 45. Kg3 {[%emt 0:00:09]} gxf3+ {[%emt 0:00:14]} 46. Kxf3 {[%emt 0:00:05]} d4 {[%emt 0:00:25]} 47. Ra1 {[%emt 0:02:44]} Bc6+ {[%emt 0:00:09]} 48. Ne4 {[%emt 0:00:11]} Rf5+ {[%emt 0:00:16]} 49. Ke2 {[%emt 0:00:50]} Bxe4 {[%emt 0:00:11]} 50. dxe4 {[%emt 0:00:02]} Rf2+ {[%emt 0:00:08]} 51. Kd3 {[%emt 0:00:06]} Rd2+ {[%emt 0:00:18]} 52. Kc4 {[%emt 0:00:03]} e2 {[%emt 0:00:19]} 0-1

[Event "Charlotte Open 2024"]
[Site "Charlotte"]
[Date "2024.01.15"]
[Round "5.14"]
[White "Wu, William"]
[Black "Vigorito, David"]
[Result "0-1"]
[ECO "B23"]
[WhiteElo "1965"]
[BlackElo "2256"]
[Annotator "NA"]
[PlyCount "62"]
[EventDate "2024.01.05"]
[EventType "swiss"]
[EventCountry "USA"]
[SourceTitle "playchess.com"]
[Source "ChessBase"]
[SourceQuality "1"]
[TimeControl "6600+10"]

1. e4 {[%emt 0:00:03]} c5 {[%emt 0:02:26]} 2. Nc3 {[%emt 0:00:31]} d6 {[%emt 0:00:26]} 3. d4 {[%emt 0:00:55]} cxd4 {[%emt 0:00:29]} 4. Qxd4 {[%emt 0:00:23]} Nc6 {[%emt 0:00:42]} 5. Qd2 {[%emt 0:00:41]} Nf6 {[%emt 0:00:24]} 6. b3 {[%emt 0:01:06]} e6 {[%emt 0:01:26]} 7. Bb2 {[%emt 0:01:25]} d5 {[%emt 0:00:43]} 8. exd5 {[%emt 0:06:13]} exd5 {[%emt 0:00:11]} 9. O-O-O {[%emt 0:03:57]} Be6 {[%emt 0:02:22]} 10. Nf3 {[%emt 0:10:30]} Qa5 {[%emt 0:03:13]} 11. Bb5 {[%emt 0:17:24]} Bb4 {[%emt 0:01:28]} 12. Qd4 {[%emt 0:07:15]} O-O {[%emt 0:03:54]} 13. Bxc6 {[%emt 0:00:37]} bxc6 {[%emt 0:01:12]} 14. Na4 {[%emt 0:00:54]} Rfe8 {[%emt 0:08:03]} 15. Ne5 {[%emt 0:05:26]} Rac8 {[%emt 0:03:17]} 16. Nd3 {[%emt 0:03:52]} c5 {[%emt 0:03:36]} 17. Qh4 {[%emt 0:15:04]} d4 {[%emt 0:01:03]} 18. a3 {[%emt 0:05:41]} Bc3 {[%emt 0:00:58]} 19. Naxc5 {[%emt 0:09:05]} Bxb2+ {[%emt 0:03:13]} 20. Kxb2 {[%emt 0:00:16]} Qc3+ {[%emt 0:00:35]} 21. Kb1 {[%emt 0:00:19]} Bf5 {[%emt 0:10:41]} 22. Rc1 {[%emt 0:07:26]} Rxc5 {[%emt 0:01:12]} 23. Nxc5 {[%emt 0:00:09]} Qxc5 {[%emt 0:00:35]} 24. Qf4 {[%emt 0:01:41]} Rc8 {[%emt 1:02:01]} 25. Rhd1 {[%emt 0:02:30]} Bxc2+ {[%emt 0:00:00]} 26. Ka2 {[%emt 0:00:07]} Qc3 {[%emt 0:00:00]} 27. Qf3 {[%emt 0:01:13]} Bxb3+ {[%emt 0:00:00]} 28. Kb1 {[%emt 0:00:06]} Bc2+ {[%emt 0:00:00]} 29. Ka2 {[%emt 0:00:06]} d3 {[%emt 0:00:00]} 30. Qb7 {[%emt 0:01:26]} d2 {[%emt 0:00:00]} 31. Rxd2 {[%emt 0:00:08]} Bb3+ {[%emt 0:00:00]} 0-1

[Event "Charlotte Open 2024"]
[Site "Charlotte"]
[Date "2024.01.15"]
[Round "5.15"]
[White "Kung, Thomas"]
[Black "Wofford, Matthew"]
[Result "0-1"]
[ECO "B90"]
[WhiteElo "2184"]
[BlackElo "1993"]
[Annotator "NA"]
[PlyCount "151"]
[EventDate "2024.01.05"]
[EventType "swiss"]
[EventCountry "USA"]
[SourceTitle "playchess.com"]
[Source "ChessBase"]
[SourceQuality "1"]
[TimeControl "6600+10"]

1. e4 {[%emt 0:02:28]} c5 {[%emt 0:00:09]} 2. Nf3 {[%emt 0:00:15]} d6 {[%emt 0:00:05]} 3. d4 {[%emt 0:00:07]} cxd4 {[%emt 0:00:04]} 4. Nxd4 {[%emt 0:00:05]} Nf6 {[%emt 0:00:05]} 5. Nc3 {[%emt 0:00:23]} a6 {[%emt 0:00:05]} 6. Be3 {[%emt 0:00:12]} Ng4 {[%emt 0:00:40]} 7. Bc1 {[%emt 0:00:53]} Nf6 {[%emt 0:00:06]} 8. f3 {[%emt 0:00:26]} e5 {[%emt 0:00:24]} 9. Nb3 {[%emt 0:00:17]} Be6 {[%emt 0:02:09]} 10. Be3 {[%emt 0:00:11]} Be7 {[%emt 0:00:13]} 11. Qd2 {[%emt 0:00:44]} h5 {[%emt 0:00:35]} 12. O-O-O {[%emt 0:01:44]} Nbd7 {[%emt 0:00:44]} 13. Kb1 {[%emt 0:00:39]} Rc8 {[%emt 0:05:04]} 14. g3 {[%emt 0:00:19]} O-O {[%emt 0:04:18]} 15. h4 {[%emt 0:17:15]} b5 {[%emt 0:10:03]} 16. Bh3 {[%emt 0:11:17]} Nb6 {[%emt 0:22:47]} 17. Bxb6 {[%emt 0:30:03]} Qxb6 {[%emt 0:00:19]} 18. Nd5 {[%emt 0:00:13]} Nxd5 {[%emt 0:03:00]} 19. exd5 {[%emt 0:00:40]} Bxh3 {[%emt 0:00:36]} 20. Rxh3 {[%emt 0:00:11]} Rc4 {[%emt 0:03:51]} 21. Rh2 {[%emt 0:06:51]} Rfc8 {[%emt 0:03:20]} 22. Qf2 {[%emt 0:02:49]} Qc7 {[%emt 0:09:12]} 23. c3 {[%emt 0:02:15]} f5 {[%emt 0:07:35]} 24. f4 {[%emt 0:12:21]} e4 {[%emt 0:07:14]} 25. Qe2 {[%emt 0:09:21]} g6 {[%emt 0:07:26]} 26. Nd4 {[%emt 0:00:37]} Bf6 {[%emt 0:03:57]} 27. Nc6 {[%emt 0:00:55]} Re8 {[%emt 0:08:37]} 28. Qe3 {[%emt 0:00:47]} a5 {[%emt 0:00:59]} 29. Rhd2 {[%emt 0:01:33]} Rc5 {[%emt 0:03:52]} 30. a3 {[%emt 0:00:44]} Qb6 {[%emt 0:01:55]} 31. Re1 {[%emt 0:01:35]} Qa6 {[%emt 0:00:55]} 32. Qe2 {[%emt 0:00:39]} Qb6 {[%emt 0:00:40]} 33. Qe3 {[%emt 0:00:09]} Qa6 {[%emt 0:00:30]} 34. Ka2 {[%emt 0:02:55]} Rc8 {[%emt 0:01:30]} 35. Red1 {[%emt 0:01:26]} Ra8 {[%emt 0:00:23]} 36. Re2 {[%emt 0:01:54]} Qb7 {[%emt 0:00:21]} 37. Kb1 {[%emt 0:00:18]} Rc4 {[%emt 0:01:05]} 38. Rc2 {[%emt 0:00:25]} Kg7 {[%emt 0:00:20]} 39. Re1 {[%emt 0:00:16]} Ra4 {[%emt 0:00:31]} 40. Ka2 {[%emt 0:00:20]} b4 {[%emt 0:00:39]} 41. c4 {[%emt 0:00:04]} bxa3 {[%emt 0:00:13]} 42. Qb3 {[%emt 0:00:14]} Rb4 {[%emt 0:00:13]} 43. Qxa3 {[%emt 0:00:07]} Rb6 {[%emt 0:00:18]} 44. b3 {[%emt 0:00:12]} a4 {[%emt 0:00:07]} 45. b4 {[%emt 0:00:03]} Rxc6 {[%emt 0:00:13]} 46. dxc6 {[%emt 0:00:01]} Qxc6 {[%emt 0:00:04]} 47. b5 {[%emt 0:00:08]} Qb6 {[%emt 0:00:08]} 48. Rd1 {[%emt 0:00:09]} Rd8 {[%emt 0:00:09]} 49. Rcd2 {[%emt 0:00:15]} Qc7 {[%emt 0:00:14]} 50. Qb4 {[%emt 0:00:09]} Be7 {[%emt 0:00:16]} 51. b6 {[%emt 0:00:10]} Qc6 {[%emt 0:00:27]} 52. Rd5 {[%emt 0:00:07]} Rb8 {[%emt 0:00:00]} 53. Rb1 {[%emt 0:00:12]} e3 {[%emt 0:00:00]} 54. Rd3 {[%emt 0:00:18]} Bf6 {[%emt 0:00:00]} 55. Rxe3 {[%emt 0:00:19]} Qg2+ {[%emt 0:00:19]} 56. Ka3 {[%emt 0:00:01]} Qf2 {[%emt 0:00:12]} 57. Qe1 {[%emt 0:00:22]} Qc2 {[%emt 0:00:09]} 58. Qc1 {[%emt 0:00:08]} Qf2 {[%emt 0:00:16]} 59. b7 {[%emt 0:00:06]} Bd4 {[%emt 0:00:01]} 60. Rd3 {[%emt 0:00:11]} Bc5+ {[%emt 0:00:09]} 61. Kxa4 {[%emt 0:00:11]} Qa2+ {[%emt 0:00:08]} 62. Ra3 {[%emt 0:00:17]} Bxa3 {[%emt 0:00:03]} 63. Qc3+ {[%emt 0:00:07]} Kf7 {[%emt 0:00:06]} 64. Ra1 {[%emt 0:00:16]} Bb2+ {[%emt 0:00:11]} 65. Rxa2 {[%emt 0:00:06]} Bxc3 {[%emt 0:00:01]} 66. Kb5 {[%emt 0:00:08]} Rxb7+ {[%emt 0:00:01]} 67. Kc6 {[%emt 0:00:01]} Re7 {[%emt 0:00:07]} 68. Kxd6 {[%emt 0:00:07]} Bb4+ {[%emt 0:00:04]} 69. Kd5 {[%emt 0:00:05]} Re3 {[%emt 0:00:09]} 70. Rb2 {[%emt 0:00:07]} Be1 {[%emt 0:00:07]} 71. c5 {[%emt 0:00:04]} Bxg3 {[%emt 0:00:03]} 72. Rb4 {[%emt 0:00:18]} Bxh4 {[%emt 0:00:07]} 73. c6 {[%emt 0:00:03]} Bd8 {[%emt 0:00:22]} 74. Rb8 {[%emt 0:00:06]} Bc7 {[%emt 0:00:09]} 75. Rh8 {[%emt 0:00:09]} Bxf4 {[%emt 0:01:16]} 76. Kd4 {[%emt 0:00:57]} 0-1

[Event "Charlotte Open 2024"]
[Site "Charlotte"]
[Date "2024.01.15"]
[Round "5.16"]
[White "Jiang, Andrew"]
[Black "Rajagopal, Adharsh"]
[Result "1-0"]
[ECO "D00"]
[WhiteElo "2213"]
[BlackElo "1895"]
[Annotator "NA"]
[PlyCount "117"]
[EventDate "2024.01.05"]
[EventType "swiss"]
[EventCountry "USA"]
[SourceTitle "playchess.com"]
[Source "ChessBase"]
[SourceQuality "1"]
[TimeControl "6600+10"]

1. d4 {[%emt 0:00:03]} Nf6 {[%emt 0:01:57]} 2. Nc3 {[%emt 0:00:11]} d5 {[%emt 0:00:11]} 3. Bf4 {[%emt 0:00:09]} g6 {[%emt 0:00:17]} 4. e3 {[%emt 0:00:12]} Bg7 {[%emt 0:00:05]} 5. Nb5 {[%emt 0:00:09]} Na6 {[%emt 0:00:29]} 6. h3 {[%emt 0:00:09]} O-O {[%emt 0:00:12]} 7. Nf3 {[%emt 0:00:47]} c6 {[%emt 0:10:01]} 8. Nc3 {[%emt 0:00:02]} Qa5 {[%emt 0:01:47]} 9. Qd2 {[%emt 0:06:15]} Nb4 {[%emt 0:01:16]} 10. a3 {[%emt 0:06:20]} Bf5 {[%emt 0:02:16]} 11. Rc1 {[%emt 0:01:20]} Na6 {[%emt 0:00:39]} 12. g4 {[%emt 0:01:46]} Bc8 {[%emt 0:02:49]} 13. Bg2 {[%emt 0:01:35]} Qb6 {[%emt 0:01:11]} 14. b4 {[%emt 0:05:39]} Qd8 {[%emt 0:03:48]} 15. Ne5 {[%emt 0:08:01]} Nc7 {[%emt 0:01:02]} 16. a4 {[%emt 0:01:17]} Nd7 {[%emt 0:00:34]} 17. Nxd7 {[%emt 0:02:26]} Bxd7 {[%emt 0:00:06]} 18. O-O {[%emt 0:00:39]} Ne8 {[%emt 0:00:15]} 19. Bg3 {[%emt 0:11:56]} Nd6 {[%emt 0:03:32]} 20. Qd3 {[%emt 0:07:03]} Nc4 {[%emt 0:02:23]} 21. Rb1 {[%emt 0:02:05]} e5 {[%emt 0:00:42]} 22. e4 {[%emt 0:02:47]} exd4 {[%emt 0:00:35]} 23. Ne2 {[%emt 0:02:26]} Ne5 {[%emt 0:01:02]} 24. Bxe5 {[%emt 0:01:17]} Bxe5 {[%emt 0:00:02]} 25. exd5 {[%emt 0:00:53]} cxd5 {[%emt 0:00:01]} 26. b5 {[%emt 0:01:17]} Qb6 {[%emt 0:05:44]} 27. Bxd5 {[%emt 0:02:20]} Be6 {[%emt 0:00:49]} 28. Bxe6 {[%emt 0:00:47]} fxe6 {[%emt 0:00:01]} 29. Qe4 {[%emt 0:02:22]} Bg7 {[%emt 0:00:28]} 30. Nf4 {[%emt 0:02:22]} Rae8 {[%emt 0:00:21]} 31. Rfe1 {[%emt 0:01:03]} Qd6 {[%emt 0:02:50]} 32. Nd3 {[%emt 0:00:36]} Qc7 {[%emt 0:00:54]} 33. Re2 {[%emt 0:00:25]} b6 {[%emt 0:04:48]} 34. Kg2 {[%emt 0:39:11]} Qc4 {[%emt 0:00:27]} 35. Rb4 {[%emt 0:00:00]} Qc3 {[%emt 0:00:58]} 36. f4 {[%emt 0:00:00]} Kh8 {[%emt 0:05:02]} 37. h4 {[%emt 0:00:00]} e5 {[%emt 0:01:36]} 38. Rb3 {[%emt 0:00:00]} Qa1 {[%emt 0:01:13]} 39. Re1 {[%emt 0:00:00]} Qxa4 {[%emt 0:01:19]} 40. fxe5 {[%emt 0:00:00]} Qc4 {[%emt 0:00:27]} 41. Re2 {[%emt 0:00:00]} Qf7 {[%emt 0:05:03]} 42. Rb1 {[%emt 0:00:00]} Qe7 {[%emt 0:01:26]} 43. Rh1 {[%emt 0:00:00]} Bf6 {[%emt 0:08:18]} 44. h5 {[%emt 0:00:00]} gxh5 {[%emt 0:00:17]} 45. Rxh5 {[%emt 0:00:00]} Rg8 {[%emt 0:00:32]} 46. Rf2 {[%emt 0:00:00]} Bh4 {[%emt 0:01:12]} 47. Rf3 {[%emt 0:00:00]} Rxg4+ {[%emt 0:03:24]} 48. Qxg4 {[%emt 0:00:00]} Rg8 {[%emt 0:00:00]} 49. Kh3 {[%emt 0:00:00]} Rxg4 {[%emt 0:00:20]} 50. Kxg4 {[%emt 0:00:00]} Qc7 {[%emt 0:14:28]} 51. Rxh4 {[%emt 0:00:00]} Qxc2 {[%emt 0:00:21]} 52. Rfh3 {[%emt 0:00:00]} Kg8 {[%emt 0:02:26]} 53. Rxh7 {[%emt 0:00:00]} Qc4 {[%emt 0:09:24]} 54. Nf4 {[%emt 0:00:00]} Qc8+ {[%emt 0:01:07]} 55. e6 {[%emt 0:00:00]} Qc4 {[%emt 0:01:10]} 56. Rh8+ {[%emt 0:00:00]} Kg7 {[%emt 0:00:06]} 57. e7 {[%emt 0:00:00]} Qf1 {[%emt 0:01:15]} 58. e8=N+ {[%emt 0:00:00]} Kf7 {[%emt 0:00:15]} 59. R3h7# {[%emt 0:04:10]} 1-0

[Event "Charlotte Open 2024"]
[Site "Charlotte"]
[Date "2024.01.15"]
[Round "5.17"]
[White "Joseph, Jonath"]
[Black "Nguyen, James Le"]
[Result "0-1"]
[ECO "C29"]
[WhiteElo "2149"]
[BlackElo "2135"]
[Annotator "NA"]
[PlyCount "94"]
[EventDate "2024.01.05"]
[EventType "swiss"]
[EventCountry "USA"]
[SourceTitle "playchess.com"]
[Source "ChessBase"]
[SourceQuality "1"]
[TimeControl "6600+10"]

1. e4 {[%emt 0:01:43]} e5 {[%emt 0:01:34]} 2. Nc3 {[%emt 0:00:14]} Nf6 {[%emt 0:00:11]} 3. f4 {[%emt 0:00:04]} d5 {[%emt 0:01:14]} 4. fxe5 {[%emt 0:00:15]} Nxe4 {[%emt 0:04:35]} 5. Qf3 {[%emt 0:01:57]} Nc6 {[%emt 0:02:21]} 6. Bb5 {[%emt 0:00:38]} Nxc3 {[%emt 0:01:30]} 7. dxc3 {[%emt 0:00:17]} Qh4+ {[%emt 0:02:05]} 8. g3 {[%emt 0:00:15]} Qe4+ {[%emt 0:00:21]} 9. Qxe4 {[%emt 0:06:43]} dxe4 {[%emt 0:00:15]} 10. Bf4 {[%emt 0:00:50]} Bd7 {[%emt 0:06:11]} 11. Bc4 {[%emt 0:06:21]} Be7 {[%emt 0:13:42]} 12. O-O-O {[%emt 0:12:21]} g5 {[%emt 0:11:57]} 13. e6 {[%emt 0:00:27]} fxe6 {[%emt 0:09:03]} 14. Bxc7 {[%emt 0:07:29]} Rc8 {[%emt 0:01:08]} 15. Bd6 {[%emt 0:00:33]} Bxd6 {[%emt 0:01:30]} 16. Rxd6 {[%emt 0:00:03]} Ke7 {[%emt 0:02:25]} 17. Rd1 {[%emt 0:01:02]} Ne5 {[%emt 0:06:55]} 18. Be2 {[%emt 0:12:52]} Bc6 {[%emt 0:03:27]} 19. Nh3 {[%emt 0:02:40]} h6 {[%emt 0:07:36]} 20. Rhe1 {[%emt 0:08:09]} Rhf8 {[%emt 0:02:15]} 21. Bf1 {[%emt 0:05:57]} Nf3 {[%emt 0:11:07]} 22. Re2 {[%emt 0:02:47]} Rcd8 {[%emt 0:03:35]} 23. Rxd8 {[%emt 0:05:33]} Kxd8 {[%emt 0:03:14]} 24. Bg2 {[%emt 0:01:03]} Ke7 {[%emt 0:02:15]} 25. Nf2 {[%emt 0:02:12]} Ng1 {[%emt 0:00:24]} 26. Re1 {[%emt 0:01:34]} Rxf2 {[%emt 0:02:21]} 27. Rxg1 {[%emt 0:00:07]} g4 {[%emt 0:01:23]} 28. h3 {[%emt 0:02:17]} h5 {[%emt 0:02:03]} 29. hxg4 {[%emt 0:00:27]} hxg4 {[%emt 0:00:02]} 30. Bh1 {[%emt 0:01:37]} Kf6 {[%emt 0:01:07]} 31. Re1 {[%emt 0:00:19]} Ke5 {[%emt 0:01:04]} 32. Kd1 {[%emt 0:02:05]} Rh2 {[%emt 0:00:16]} 33. Kc1 {[%emt 0:01:15]} Rh3 {[%emt 0:00:19]} 34. Rg1 {[%emt 0:00:47]} e3 {[%emt 0:00:24]} 35. Bxc6 {[%emt 0:01:06]} bxc6 {[%emt 0:00:02]} 36. Kd1 {[%emt 0:01:50]} Rh2 {[%emt 0:00:48]} 37. b4 {[%emt 0:01:17]} Ke4 {[%emt 0:00:31]} 38. c4 {[%emt 0:01:19]} Kd4 {[%emt 0:01:02]} 39. Re1 {[%emt 0:01:15]} Rg2 {[%emt 0:00:04]} 40. b5 {[%emt 0:01:35]} cxb5 {[%emt 0:00:02]} 41. c5 {[%emt 0:00:41]} Rd2+ {[%emt 0:00:51]} 42. Kc1 {[%emt 0:00:06]} Ke4 {[%emt 0:00:06]} 43. Rf1 {[%emt 0:00:50]} Rf2 {[%emt 0:00:10]} 44. Rd1 {[%emt 0:00:40]} Rf5 {[%emt 0:00:26]} 45. c6 {[%emt 0:00:18]} e2 {[%emt 0:00:41]} 46. Re1 {[%emt 0:00:50]} Ke3 {[%emt 0:00:06]} 47. c7 {[%emt 0:00:08]} Rc5 {[%emt 0:00:06]} 0-1

[Event "Charlotte Open 2024"]
[Site "Charlotte"]
[Date "2024.01.15"]
[Round "5.18"]
[White "McCartney, Patrick"]
[Black "Lutsenko, Aleksandr"]
[Result "0-1"]
[ECO "A00"]
[WhiteElo "1730"]
[BlackElo "1572"]
[Annotator "NA"]
[PlyCount "94"]
[EventDate "2024.01.05"]
[EventType "swiss"]
[EventCountry "USA"]
[SourceTitle "playchess.com"]
[Source "ChessBase"]
[SourceQuality "1"]
[TimeControl "6600+10"]

1. b4 {[%emt 0:10:00]} Nf6 {[%emt 0:15:30]} 2. Bb2 {[%emt 0:00:02]} e6 {[%emt 0:00:14]} 3. b5 {[%emt 0:00:07]} d5 {[%emt 0:01:12]} 4. e3 {[%emt 0:00:03]} c5 {[%emt 0:06:07]} 5. Nf3 {[%emt 0:00:14]} Bd6 {[%emt 0:02:40]} 6. Be2 {[%emt 0:00:03]} O-O {[%emt 0:00:27]} 7. O-O {[%emt 0:00:10]} Nbd7 {[%emt 0:04:42]} 8. d4 {[%emt 0:00:49]} c4 {[%emt 0:06:52]} 9. a4 {[%emt 0:03:48]} Qc7 {[%emt 0:13:30]} 10. Ba3 {[%emt 0:01:45]} Ne4 {[%emt 0:01:12]} 11. Bxd6 {[%emt 0:02:57]} Qxd6 {[%emt 0:01:53]} 12. Nfd2 {[%emt 0:01:25]} f5 {[%emt 0:06:19]} 13. f3 {[%emt 0:01:51]} Nxd2 {[%emt 0:03:10]} 14. Qxd2 {[%emt 0:03:47]} Nf6 {[%emt 0:12:37]} 15. Nc3 {[%emt 0:04:06]} Bd7 {[%emt 0:02:24]} 16. Rad1 {[%emt 0:14:20]} Be8 {[%emt 0:06:49]} 17. e4 {[%emt 0:07:53]} fxe4 {[%emt 0:00:21]} 18. fxe4 {[%emt 0:00:10]} dxe4 {[%emt 0:00:31]} 19. Bxc4 {[%emt 0:00:25]} Rc8 {[%emt 0:01:33]} 20. Rxf6 {[%emt 0:09:53]} gxf6 {[%emt 0:01:09]} 21. Nxe4 {[%emt 0:00:22]} Qe7 {[%emt 0:01:54]} 22. Bb3 {[%emt 0:06:27]} b6 {[%emt 0:02:29]} 23. Qf4 {[%emt 0:01:46]} Bg6 {[%emt 0:05:52]} 24. Nd6 {[%emt 0:18:15]} Rcd8 {[%emt 0:00:55]} 25. Nf5 {[%emt 0:01:32]} Qd7 {[%emt 0:01:59]} 26. Qg4 {[%emt 0:03:24]} Kh8 {[%emt 0:01:32]} 27. Nh4 {[%emt 0:01:45]} Bf7 {[%emt 0:00:27]} 28. Qf4 {[%emt 0:01:19]} Bg8 {[%emt 0:01:07]} 29. Rd3 {[%emt 0:02:33]} f5 {[%emt 0:07:12]} 30. Nf3 {[%emt 0:06:33]} Qd6 {[%emt 0:01:06]} 31. Ne5 {[%emt 0:00:49]} Rf6 {[%emt 0:00:13]} 32. g4 {[%emt 0:01:27]} Qf8 {[%emt 0:00:53]} 33. g5 {[%emt 0:00:26]} Qg7 {[%emt 0:00:01]} 34. Kf1 {[%emt 0:01:26]} Rff8 {[%emt 0:00:03]} 35. Rh3 {[%emt 0:01:00]} Bf7 {[%emt 0:00:15]} 36. c3 {[%emt 0:00:58]} Rfe8 {[%emt 0:00:20]} 37. Qg3 {[%emt 0:00:45]} Bg6 {[%emt 0:00:25]} 38. Rh6 {[%emt 0:00:25]} Kg8 {[%emt 0:00:16]} 39. h4 {[%emt 0:00:31]} f4 {[%emt 0:00:01]} 40. Qf3 {[%emt 0:00:24]} Bf5 {[%emt 0:00:23]} 41. Nc6 {[%emt 0:00:17]} Rd7 {[%emt 0:00:09]} 42. Qh5 {[%emt 0:00:13]} Rf7 {[%emt 0:00:06]} 43. Ne5 {[%emt 0:00:11]} Bg6 {[%emt 0:00:04]} 44. Qf3 {[%emt 0:00:14]} Rc7 {[%emt 0:00:01]} 45. h5 {[%emt 0:00:16]} Bf5 {[%emt 0:00:05]} 46. Qg2 {[%emt 0:00:23]} Rxc3 {[%emt 0:00:18]} 47. Ba2 {[%emt 0:00:19]} Bh3 {[%emt 0:00:02]} 0-1

[Event "Charlotte Open 2024"]
[Site "Charlotte"]
[Date "2024.01.15"]
[Round "6.1"]
[White "Brodsky, David"]
[Black "Troff, Kayden"]
[Result "1-0"]
[ECO "B38"]
[WhiteElo "2492"]
[BlackElo "2484"]
[Annotator "TA"]
[PlyCount "67"]
[EventDate "2024.01.05"]
[EventType "swiss"]
[EventCountry "USA"]
[SourceTitle "playchess.com"]
[Source "ChessBase"]
[SourceQuality "1"]
[TimeControl "6600+10"]

{[%evp 11,67,41,44,35,35,38,44,43,43,43,43,31,31,33,39,33,35,17,44,50,37,39,46,0,0,7,84,72,86,88,202,193,198,192,195,199,302,307,320,359,356,357,351,348,713,729,722,718,706,686,668,539,597,565,642,630,626,598]} 1. e4 {[%emt 0:02:59]} c5 {[%emt 0:00:06]} 2. Nf3 {[%emt 0:00:02]} g6 {[%emt 0:00:06]} 3. d4 {[%emt 0:00:05]} cxd4 {[%emt 0:00:04]} 4. Nxd4 {[%emt 0:00:03]} Bg7 {[%emt 0:00:08]} 5. c4 {[%emt 0:00:04]} Nc6 {[%emt 0:00:10]} 6. Be3 {[%emt 0:00:05]} Qb6 {[%emt 0:00:06][%cal Rc6d4]} 7. Nb3 {[%emt 0:00:04] B38: Sicilian: Maroczy Bind with 5...Bg7 and 7...0-0.} Qd8 {[%emt 0:00:07]} 8. Qd2 $1 {[%emt 0:00:14] 8.Qd2 scores better than 8.Nc3.} Nf6 {[%emt 0:00:12]} 9. Nc3 {[%emt 0:00:25] White is slightly better.} O-O {[%emt 0:00:14]} 10. f3 {[%emt 0:00:49]} d6 {[%emt 0:00:10]} 11. Be2 {[%emt 0:00:26]} Be6 {[%emt 0:00:23]} 12. O-O {[%emt 0:00:08]} Nd7 {[%emt 0:10:02]} 13. Rac1 {[%emt 0:00:32]} a5 {[%emt 0:02:16]} 14. Na1 {[%emt 0:00:08][%cal Bb3a1,Ba1c2,Bc2a3,Ba3b5,Bb5d6][%mdl 32]} Nc5 {[%emt 0:02:09]} 15. Nc2 {[%emt 0:05:05]} a4 {[%emt 0:02:14]} 16. Na3 {[%emt 0:01:56]} Qa5 {[%emt 0:03:30] [#]} 17. Nab5 $146 {[%emt 0:01:36]} ({Predecessor:} 17. Rfd1 Rfc8 18. Bf1 f5 19. exf5 Bxf5 20. Nd5 Be6 21. Nc3 Bf7 22. Kh1 Rd8 23. Qf2 e5 24. Nab5 Bf8 25. Rd2 Rd7 26. Rcd1 Rad8 27. Bxc5 dxc5 28. Rxd7 Rxd7 29. Rxd7 {1-0 Ambartsumova,K (2382)-Padmini,R (2370) Speed Chess (Women) Q6 blitz 2021 (7)}) 17... Ne5 {[%emt 1:31:03]} 18. Nd5 {[%emt 0:15:27]} Qxd2 {[%emt 0:00:00]} (18... Bxd5 $1 $11 {remains equal.} 19. Qxd5 (19. cxd5 Ned3 $11) 19... Nc6) 19. Nxe7+ $16 {[%emt 0:00:20] Black is on the road to losing.} Kh8 {[%emt 0:00:00]} 20. Bxd2 {[%emt 0:00:02]} Ncd3 {[%emt 0:00:00] [#]} (20... Nc6 $16 {was called for.}) 21. Rc2 $1 $18 {[%emt 0:06:48]} Bxc4 {[%emt 0:00:00]} 22. Nxd6 {[%emt 0:02:48]} Ba6 {[%emt 0:00:00] [#]} 23. f4 $1 {[%emt 0:03:15]} Nd7 {[%emt 0:00:00]} (23... Nc6 {keeps fighting.}) 24. e5 {[%emt 0:02:34]} N3c5 {[%emt 0:00:00]} 25. Bxa6 {[%emt 0:00:43]} Rxa6 {[%emt 0:00:00]} 26. Be3 {[%emt 0:01:37]} b6 {[%emt 0:00:00]} 27. Rd1 {[%emt 0:07:42]} f6 $2 {[%emt 0:00:00] [#]} (27... h5 28. h3 Kh7) 28. e6 $1 {[%emt 0:00:56][%mdl 512] White is clearly winning.} Nxe6 {[%emt 0:00:00] Black is weak on the light squares} 29. Rc8 {[%emt 0:00:04][%cal Rd6f7]} ({Less strong is} 29. f5 gxf5 30. Ndxf5 (30. Nexf5 Ne5 $16) 30... Ndc5 $18) 29... Bh6 {[%emt 0:00:00]} 30. Nf7+ {[%emt 0:00:08][%mdl 64] Discovered Attack, Double Attack} Kg7 {[%emt 0:00:00]} 31. Nxh6 {[%emt 0:00:40]} Ra7 {[%emt 0:00:00]} 32. Ng4 {[%emt 0:00:32]} Rxc8 {[%emt 0:00:00]} 33. Nxc8 {[%emt 0:00:05]} Rc7 {[%emt 0:00:00]} 34. Nxb6 {[%emt 0:00:16] Weighted Error Value: White=0.16 (very precise) /Black=0.27 (precise)} 1-0